[Event "Late-Titled-Tuesday-Blitz-March-19-2024"]
[Site "Chess.com"]
[Date "2024.03.19"]
[Round "4"]
[White "emeli_chess"]
[Black "Vadim_Galchenko"]
[Result "0-1"]
[WhiteElo "2418"]
[BlackElo "2605"]
[TimeControl "180+1"]
[EndTime "14:39:55 PDT"]
[Termination "Vadim_Galchenko won by resignation"]

1. d4 {[%clk 0:03:00.9]} 1... d5 {[%clk 0:02:59.5]} 2. c4 {[%clk 0:03:00.8]}
2... Nc6 {[%clk 0:03:00.2]} 3. e3 {[%clk 0:02:55.9]} 3... e5 {[%clk 0:02:59.7]}
4. dxe5 {[%clk 0:02:56.1]} 4... d4 {[%clk 0:02:59.1]} 5. a3 {[%clk 0:02:56]}
5... Be6 {[%clk 0:02:52.9]} 6. Nf3 {[%clk 0:02:52.2]} 6... dxe3 {[%clk
0:02:44.1]} 7. Qxd8+ {[%clk 0:02:51.2]} 7... Rxd8 {[%clk 0:02:45]} 8. Bxe3
{[%clk 0:02:51.1]} 8... Nge7 {[%clk 0:02:43.8]} 9. Nc3 {[%clk 0:02:49.7]} 9...
Nf5 {[%clk 0:02:42.8]} 10. Bg5 {[%clk 0:02:38.7]} 10... Rd7 {[%clk 0:02:38.9]}
11. Rd1 {[%clk 0:02:33.2]} 11... Ncd4 {[%clk 0:02:19.6]} 12. Nxd4 {[%clk
0:02:20.9]} 12... Nxd4 {[%clk 0:02:17.8]} 13. Nd5 {[%clk 0:01:49.4]} 13... Nc2+
{[%clk 0:01:45.8]} 14. Kd2 {[%clk 0:01:46.3]} 14... Nd4 {[%clk 0:01:10.7]} 15.
Kc3 {[%clk 0:01:33.1]} 15... c5 {[%clk 0:01:06.9]} 16. Be3 {[%clk 0:01:04.7]}
16... Bxd5 {[%clk 0:00:39]} 17. cxd5 {[%clk 0:00:54.8]} 17... Rxd5 {[%clk
0:00:39.9]} 18. Bxd4 {[%clk 0:00:54.7]} 18... cxd4+ {[%clk 0:00:39.2]} 19. Rxd4
{[%clk 0:00:52.9]} 19... Rxe5 {[%clk 0:00:38.1]} 20. Bd3 {[%clk 0:00:44.8]}
20... Bc5 {[%clk 0:00:34.3]} 21. Re4 {[%clk 0:00:44.2]} 21... Rxe4 {[%clk
0:00:29.7]} 22. Bxe4 {[%clk 0:00:44.4]} 22... Bxf2 {[%clk 0:00:25]} 23. Bxb7
{[%clk 0:00:43.6]} 23... Ke7 {[%clk 0:00:20.5]} 24. Rf1 {[%clk 0:00:40.5]} 24...
Bb6 {[%clk 0:00:18.9]} 25. Bd5 {[%clk 0:00:38.1]} 25... f6 {[%clk 0:00:17.7]}
26. b4 {[%clk 0:00:31.5]} 26... Rc8+ {[%clk 0:00:16.3]} 27. Bc4 {[%clk 0:00:31]}
27... Bc7 {[%clk 0:00:15.8]} 28. Kb3 {[%clk 0:00:24.9]} 28... Bxh2 {[%clk
0:00:15.3]} 29. Rh1 {[%clk 0:00:24.5]} 29... Be5 {[%clk 0:00:14.5]} 30. Rxh7
{[%clk 0:00:23.6]} 30... f5 {[%clk 0:00:14.8]} 31. Rh5 {[%clk 0:00:21.8]} 31...
Kf6 {[%clk 0:00:14.6]} 32. Rh3 {[%clk 0:00:19.9]} 32... Rd8 {[%clk 0:00:13.6]}
33. Rd3 {[%clk 0:00:19.6]} 33... Rh8 {[%clk 0:00:13.4]} 34. Rd7 {[%clk
0:00:19.2]} 34... Rh2 {[%clk 0:00:09.6]} 35. Rxa7 {[%clk 0:00:17.7]} 35... Rxg2
{[%clk 0:00:09.6]} 36. Rf7+ {[%clk 0:00:17.2]} 36... Kg6 {[%clk 0:00:09.9]} 37.
Re7 {[%clk 0:00:17.3]} 37... Bf6 {[%clk 0:00:10]} 38. Re6 {[%clk 0:00:17.2]}
38... f4 {[%clk 0:00:09.9]} 39. Bd5 {[%clk 0:00:16.9]} 39... Rb2+ {[%clk
0:00:09.3]} 40. Kc4 {[%clk 0:00:16.8]} 40... Rc2+ {[%clk 0:00:09.7]} 41. Kb5
{[%clk 0:00:16.3]} 41... Rd2 {[%clk 0:00:07.2]} 42. Bc6 {[%clk 0:00:16.2]} 42...
Kg5 {[%clk 0:00:06.5]} 43. a4 {[%clk 0:00:15.8]} 43... Kf5 {[%clk 0:00:06.4]}
44. Re8 {[%clk 0:00:15.4]} 44... g5 {[%clk 0:00:05.8]} 45. a5 {[%clk 0:00:15.1]}
45... g4 {[%clk 0:00:04.5]} 46. a6 {[%clk 0:00:15.4]} 46... Ra2 {[%clk
0:00:02.7]} 47. Bd5 {[%clk 0:00:14.8]} 47... Ra1 {[%clk 0:00:01.7]} 48. Be4+
{[%clk 0:00:12.7]} 48... Kg5 {[%clk 0:00:02]} 49. Rg8+ {[%clk 0:00:11.9]} 49...
Kh4 {[%clk 0:00:02.6]} 50. Rf8 {[%clk 0:00:11.4]} 50... Bd4 {[%clk 0:00:02.5]}
51. Rf7 {[%clk 0:00:10.7]} 51... f3 {[%clk 0:00:02.7]} 52. Bxf3 {[%clk
0:00:10.6]} 52... gxf3 {[%clk 0:00:03.6]} 53. Rxf3 {[%clk 0:00:10.4]} 53... Kg4
{[%clk 0:00:03.8]} 54. Rd3 {[%clk 0:00:10.5]} 54... Bg1 {[%clk 0:00:03.1]} 55.
Rd7 {[%clk 0:00:09.2]} 55... Kf5 {[%clk 0:00:03.5]} 56. Kc6 {[%clk 0:00:08.8]}
56... Ke6 {[%clk 0:00:03.6]} 57. b5 {[%clk 0:00:08.5]} 57... Rc1+ {[%clk
0:00:03.4]} 58. Kb7 {[%clk 0:00:08.4]} 58... Kxd7 {[%clk 0:00:03.8]} 59. b6
{[%clk 0:00:08.6]} 59... Rb1 {[%clk 0:00:04]} 60. a7 {[%clk 0:00:08.4]} 60...
Rxb6+ {[%clk 0:00:04]} 61. Ka8 {[%clk 0:00:08.8]} 61... Ra6 {[%clk 0:00:04.2]}
62. Kb7 {[%clk 0:00:09]} 62... Rxa7+ {[%clk 0:00:04.6]} 63. Kb8 {[%clk
0:00:09.6]} 63... Ra1 {[%clk 0:00:05.3]} 64. Kb7 {[%clk 0:00:09.9]} 64... Rb1+
{[%clk 0:00:05.8]} 0-1

[Event "Late-Titled-Tuesday-Blitz-March-19-2024"]
[Site "Chess.com"]
[Date "2024.03.19"]
[Round "4"]
[White "fen_fire"]
[Black "ViktoriyaTarasova"]
[Result "0-1"]
[WhiteElo "2518"]
[BlackElo "2332"]
[TimeControl "180+1"]
[EndTime "14:40:00 PDT"]
[Termination "ViktoriyaTarasova won on time"]

1. Nf3 {[%clk 0:02:59.8]} 1... Nf6 {[%clk 0:02:55.5]} 2. g3 {[%clk 0:03:00.7]}
2... b6 {[%clk 0:02:55]} 3. Bg2 {[%clk 0:03:01.6]} 3... Bb7 {[%clk 0:02:55.6]}
4. O-O {[%clk 0:03:02]} 4... c5 {[%clk 0:02:55.1]} 5. d3 {[%clk 0:03:01.1]} 5...
d5 {[%clk 0:02:54.7]} 6. e4 {[%clk 0:02:54]} 6... dxe4 {[%clk 0:02:45.9]} 7.
Nfd2 {[%clk 0:02:53.8]} 7... e5 {[%clk 0:02:41.4]} 8. Nc3 {[%clk 0:02:51.5]}
8... Be7 {[%clk 0:02:34.9]} 9. Ndxe4 {[%clk 0:02:50.2]} 9... Nxe4 {[%clk
0:02:34.3]} 10. dxe4 {[%clk 0:02:51.1]} 10... Nc6 {[%clk 0:02:22.7]} 11. Nd5
{[%clk 0:02:49.9]} 11... O-O {[%clk 0:02:22.9]} 12. c3 {[%clk 0:02:48.8]} 12...
Bd6 {[%clk 0:01:51.2]} 13. Qg4 {[%clk 0:02:46.3]} 13... Bc8 {[%clk 0:01:43.1]}
14. Qh5 {[%clk 0:02:40.9]} 14... Ne7 {[%clk 0:01:35.8]} 15. Rd1 {[%clk
0:02:32.9]} 15... Nxd5 {[%clk 0:01:34.9]} 16. Rxd5 {[%clk 0:02:33.8]} 16... Qe7
{[%clk 0:01:30.1]} 17. Bg5 {[%clk 0:02:30.4]} 17... f6 {[%clk 0:01:28.3]} 18.
Rad1 {[%clk 0:02:30.3]} 18... Bc7 {[%clk 0:01:26.9]} 19. Be3 {[%clk 0:02:08.6]}
19... Be6 {[%clk 0:01:26.6]} 20. R5d2 {[%clk 0:02:08.6]} 20... Rad8 {[%clk
0:01:25.9]} 21. b3 {[%clk 0:02:03.6]} 21... Rxd2 {[%clk 0:01:24.8]} 22. Rxd2
{[%clk 0:02:03.3]} 22... Rd8 {[%clk 0:01:25.5]} 23. Qd1 {[%clk 0:02:03.6]} 23...
Rxd2 {[%clk 0:01:24.5]} 24. Qxd2 {[%clk 0:02:04.5]} 24... Qd6 {[%clk 0:01:23.6]}
25. Qxd6 {[%clk 0:01:54.1]} 25... Bxd6 {[%clk 0:01:23.9]} 26. Bf1 {[%clk
0:01:54.2]} 26... Kf8 {[%clk 0:01:22.8]} 27. f4 {[%clk 0:01:52.8]} 27... Ke7
{[%clk 0:01:18]} 28. Kf2 {[%clk 0:01:51.2]} 28... Bf7 {[%clk 0:01:18.1]} 29. Bb5
{[%clk 0:01:44.1]} 29... exf4 {[%clk 0:01:11.5]} 30. gxf4 {[%clk 0:01:42.9]}
30... Bg6 {[%clk 0:01:11.3]} 31. Bc6 {[%clk 0:01:40.5]} 31... Bh5 {[%clk
0:01:04.7]} 32. Bd2 {[%clk 0:01:31.6]} 32... h6 {[%clk 0:01:04.7]} 33. h4 {[%clk
0:01:29.2]} 33... Ke6 {[%clk 0:00:54.3]} 34. Bd5+ {[%clk 0:01:27.4]} 34... Ke7
{[%clk 0:00:54.8]} 35. c4 {[%clk 0:01:26.6]} 35... Bd1 {[%clk 0:00:50.4]} 36.
Kg3 {[%clk 0:01:20.7]} 36... Bh5 {[%clk 0:00:44.5]} 37. Bc3 {[%clk 0:01:16.7]}
37... Bc7 {[%clk 0:00:43.1]} 38. e5 {[%clk 0:01:15.7]} 38... fxe5 {[%clk
0:00:29.5]} 39. Bxe5 {[%clk 0:01:16.6]} 39... Bxe5 {[%clk 0:00:28.5]} 40. fxe5
{[%clk 0:01:17.5]} 40... Bg6 {[%clk 0:00:25.3]} 41. a3 {[%clk 0:01:11.3]} 41...
a5 {[%clk 0:00:23.4]} 42. Bc6 {[%clk 0:01:01.4]} 42... Bc2 {[%clk 0:00:23]} 43.
Ba4 {[%clk 0:01:00.8]} 43... Ke6 {[%clk 0:00:21.1]} 44. Kf4 {[%clk 0:01:00.8]}
44... g5+ {[%clk 0:00:19.3]} 45. hxg5 {[%clk 0:01:01.7]} 45... hxg5+ {[%clk
0:00:19.5]} 46. Kxg5 {[%clk 0:00:55.4]} 46... Kxe5 {[%clk 0:00:19.5]} 47. Kg4
{[%clk 0:00:28.8]} 47... Kd4 {[%clk 0:00:19.8]} 48. Kf4 {[%clk 0:00:27.8]} 48...
Kc3 {[%clk 0:00:19.9]} 49. Ke5 {[%clk 0:00:17.5]} 49... Bxb3 {[%clk 0:00:20.1]}
50. Be8 {[%clk 0:00:18.4]} 50... Bxc4 {[%clk 0:00:19.6]} 51. Kd6 {[%clk
0:00:18.6]} 51... Kd4 {[%clk 0:00:14.4]} 52. a4 {[%clk 0:00:14.7]} 52... Bb3
{[%clk 0:00:13.9]} 53. Kc7 {[%clk 0:00:13.4]} 53... c4 {[%clk 0:00:13.9]} 54.
Kxb6 {[%clk 0:00:13]} 54... c3 {[%clk 0:00:13.2]} 55. Bg6 {[%clk 0:00:12.1]}
55... Bxa4 {[%clk 0:00:10.8]} 56. Kxa5 {[%clk 0:00:12.1]} 56... Bc6 {[%clk
0:00:10.8]} 57. Kb4 {[%clk 0:00:11.3]} 57... Bd5 {[%clk 0:00:09.3]} 58. Bh7
{[%clk 0:00:07.2]} 58... Bf3 {[%clk 0:00:09.6]} 59. Kb3 {[%clk 0:00:06]} 59...
Bd1+ {[%clk 0:00:09.8]} 60. Ka2 {[%clk 0:00:05.8]} 60... Be2 {[%clk 0:00:09.5]}
61. Kb1 {[%clk 0:00:04]} 61... Bd3+ {[%clk 0:00:09.9]} 62. Bxd3 {[%clk
0:00:03.6]} 62... Kxd3 {[%clk 0:00:10.5]} 63. Kc1 {[%clk 0:00:04.5]} 63... c2
{[%clk 0:00:11]} 0-1

[Event "Late-Titled-Tuesday-Blitz-March-19-2024"]
[Site "Chess.com"]
[Date "2024.03.19"]
[Round "4"]
[White "jefferyx"]
[Black "kleinebeer98"]
[Result "1-0"]
[WhiteElo "3102"]
[BlackElo "2867"]
[TimeControl "180+1"]
[EndTime "14:40:05 PDT"]
[Termination "jefferyx won on time"]

1. e4 {[%clk 0:03:00.9]} 1... e5 {[%clk 0:02:58.5]} 2. Nf3 {[%clk 0:03:01.2]}
2... Nc6 {[%clk 0:02:59.2]} 3. Nc3 {[%clk 0:03:01.7]} 3... Nf6 {[%clk
0:02:59.4]} 4. d4 {[%clk 0:03:02.2]} 4... exd4 {[%clk 0:03:00.3]} 5. Nxd4 {[%clk
0:03:02.9]} 5... Nxe4 {[%clk 0:03:00.9]} 6. Nxe4 {[%clk 0:03:02.4]} 6... Qe7
{[%clk 0:03:01.6]} 7. Bd3 {[%clk 0:02:59]} 7... Nxd4 {[%clk 0:03:01.7]} 8. O-O
{[%clk 0:02:59.4]} 8... Ne6 {[%clk 0:02:59.8]} 9. Re1 {[%clk 0:02:57.9]} 9... d5
{[%clk 0:02:57.8]} 10. Ng3 {[%clk 0:02:58.2]} 10... g6 {[%clk 0:02:57.7]} 11. f4
{[%clk 0:02:58.3]} 11... Qf6 {[%clk 0:02:50.7]} 12. f5 {[%clk 0:02:45.6]} 12...
gxf5 {[%clk 0:02:50.1]} 13. Nxf5 {[%clk 0:02:44]} 13... Rg8 {[%clk 0:02:38.3]}
14. Bf4 {[%clk 0:02:40.6]} 14... Bd7 {[%clk 0:02:24.7]} 15. Bxc7 {[%clk
0:02:38.6]} 15... Bc6 {[%clk 0:02:20]} 16. Bg3 {[%clk 0:02:35.5]} 16... d4
{[%clk 0:02:08.4]} 17. Rf1 {[%clk 0:02:17.1]} 17... Qg5 {[%clk 0:01:58.9]} 18.
Qe2 {[%clk 0:02:14]} 18... O-O-O {[%clk 0:01:57]} 19. Qe5 {[%clk 0:02:13]} 19...
Rd5 {[%clk 0:01:43.4]} 20. Qb8+ {[%clk 0:01:39.5]} 20... Kd7 {[%clk 0:01:43.7]}
21. Qxa7 {[%clk 0:00:29]} 21... Bc5 {[%clk 0:01:38.8]} 22. Qa5 {[%clk 0:00:29]}
22... Bd6 {[%clk 0:01:30.1]} 23. Qe1 {[%clk 0:00:28.5]} 23... Bxg3 {[%clk
0:01:20.5]} 24. Nxg3 {[%clk 0:00:28.7]} 24... Nf4 {[%clk 0:01:16.6]} 25. Qf2
{[%clk 0:00:22.2]} 25... Nxd3 {[%clk 0:00:53.4]} 26. Qxf7+ {[%clk 0:00:23.1]}
26... Kc8 {[%clk 0:00:53.4]} 27. cxd3 {[%clk 0:00:24]} 27... h5 {[%clk
0:00:52.9]} 28. Rf2 {[%clk 0:00:20.8]} 28... Rd7 {[%clk 0:00:49.1]} 29. Qf4
{[%clk 0:00:15.9]} 29... Qb5 {[%clk 0:00:43.7]} 30. Nf5 {[%clk 0:00:11.3]} 30...
Qd5 {[%clk 0:00:37.5]} 31. Qe4 {[%clk 0:00:04.7]} 31... Qxe4 {[%clk 0:00:30.3]}
32. dxe4 {[%clk 0:00:05.6]} 32... Bxe4 {[%clk 0:00:31]} 33. Re1 {[%clk
0:00:06.3]} 33... d3 {[%clk 0:00:14.3]} 34. Rxe4 {[%clk 0:00:04.4]} 34... d2
{[%clk 0:00:15]} 35. Ne3 {[%clk 0:00:02.2]} 35... d1=Q+ {[%clk 0:00:15.8]} 36.
Nxd1 {[%clk 0:00:02.9]} 36... Rxd1+ {[%clk 0:00:16.5]} 37. Rf1 {[%clk
0:00:03.8]} 37... Rd2 {[%clk 0:00:17.3]} 38. Rf2 {[%clk 0:00:03.3]} 38... Rd1+
{[%clk 0:00:18.1]} 39. Rf1 {[%clk 0:00:03.8]} 39... Rd2 {[%clk 0:00:19]} 40. g3
{[%clk 0:00:03.3]} 40... Rxb2 {[%clk 0:00:18.3]} 41. Rf2 {[%clk 0:00:03.9]}
41... Rxf2 {[%clk 0:00:14.5]} 42. Kxf2 {[%clk 0:00:04.8]} 42... Rg5 {[%clk
0:00:14.9]} 43. Rc4+ {[%clk 0:00:04.4]} 43... Kd7 {[%clk 0:00:15.2]} 44. Rd4+
{[%clk 0:00:04.2]} 44... Kc6 {[%clk 0:00:15.8]} 45. Kf3 {[%clk 0:00:04.7]} 45...
b5 {[%clk 0:00:14.1]} 46. a4 {[%clk 0:00:04.2]} 46... Kc5 {[%clk 0:00:12.4]} 47.
Re4 {[%clk 0:00:02.5]} 47... b4 {[%clk 0:00:12.7]} 48. Kf4 {[%clk 0:00:03]}
48... Rg4+ {[%clk 0:00:12.1]} 49. Ke3 {[%clk 0:00:02.9]} 49... Rxe4+ {[%clk
0:00:10]} 50. Kxe4 {[%clk 0:00:03.8]} 50... Kc4 {[%clk 0:00:10.8]} 51. Ke3
{[%clk 0:00:03.3]} 51... Kc3 {[%clk 0:00:09.1]} 52. a5 {[%clk 0:00:03.8]} 52...
b3 {[%clk 0:00:09.6]} 53. a6 {[%clk 0:00:04.7]} 53... b2 {[%clk 0:00:10.3]} 54.
a7 {[%clk 0:00:05.6]} 54... b1=Q {[%clk 0:00:10.9]} 55. a8=Q {[%clk 0:00:06.5]}
55... Qg1+ {[%clk 0:00:08.3]} 56. Kf4 {[%clk 0:00:06.1]} 56... Qxh2 {[%clk
0:00:08.4]} 57. Qa3+ {[%clk 0:00:05.9]} 57... Kd4 {[%clk 0:00:08.6]} 58. Qe3+
{[%clk 0:00:06]} 58... Kd5 {[%clk 0:00:09.4]} 59. Qe5+ {[%clk 0:00:06]} 59...
Kc4 {[%clk 0:00:09.4]} 60. Kg5 {[%clk 0:00:06.9]} 60... Kd3 {[%clk 0:00:03.6]}
61. Qf5+ {[%clk 0:00:05.2]} 61... Ke3 {[%clk 0:00:03.9]} 62. Qf4+ {[%clk
0:00:05.5]} 62... Ke2 {[%clk 0:00:04.6]} 63. Qh4 {[%clk 0:00:03.8]} 63... Qg1
{[%clk 0:00:01.8]} 64. Qxh5+ {[%clk 0:00:03.1]} 64... Ke3 {[%clk 0:00:02]} 65.
g4 {[%clk 0:00:02.9]} 65... Qc1 {[%clk 0:00:02.4]} 66. Qh3+ {[%clk 0:00:01.6]}
66... Ke4+ {[%clk 0:00:02.5]} 67. Kh5 {[%clk 0:00:02.3]} 67... Qc5+ {[%clk
0:00:02.6]} 68. g5 {[%clk 0:00:02.9]} 68... Qf8 {[%clk 0:00:03.1]} 69. Qe6+
{[%clk 0:00:03]} 69... Kf4 {[%clk 0:00:03.5]} 70. Qf6+ {[%clk 0:00:03.3]} 1-0

[Event "Late-Titled-Tuesday-Blitz-March-19-2024"]
[Site "Chess.com"]
[Date "2024.03.19"]
[Round "4"]
[White "Muracle"]
[Black "jcibarra"]
[Result "0-1"]
[WhiteElo "2601"]
[BlackElo "2929"]
[TimeControl "180+1"]
[EndTime "14:40:05 PDT"]
[Termination "jcibarra won on time"]

1. d4 {[%clk 0:02:52.3]} 1... Nf6 {[%clk 0:02:59.1]} 2. g3 {[%clk 0:02:50.7]}
2... g6 {[%clk 0:02:57.8]} 3. Bg2 {[%clk 0:02:49.3]} 3... Bg7 {[%clk 0:02:58.3]}
4. Nf3 {[%clk 0:02:49.5]} 4... d6 {[%clk 0:02:57.4]} 5. O-O {[%clk 0:02:50.4]}
5... O-O {[%clk 0:02:57.6]} 6. c4 {[%clk 0:02:47.6]} 6... Bf5 {[%clk 0:02:56.7]}
7. Nc3 {[%clk 0:02:46.9]} 7... Ne4 {[%clk 0:02:56.8]} 8. Qb3 {[%clk 0:02:46.7]}
8... Nxc3 {[%clk 0:02:56.9]} 9. bxc3 {[%clk 0:02:47]} 9... Be4 {[%clk
0:02:57.1]} 10. Bf4 {[%clk 0:02:36.8]} 10... b6 {[%clk 0:02:54.5]} 11. Rfd1
{[%clk 0:02:33]} 11... Nc6 {[%clk 0:02:54.2]} 12. Qa4 {[%clk 0:02:22.7]} 12...
Na5 {[%clk 0:02:53.4]} 13. Nd2 {[%clk 0:02:13.9]} 13... Bxg2 {[%clk 0:02:51.7]}
14. Kxg2 {[%clk 0:02:14.8]} 14... Qe8 {[%clk 0:02:39.9]} 15. Qxe8 {[%clk
0:02:10.4]} 15... Rfxe8 {[%clk 0:02:39.7]} 16. e4 {[%clk 0:02:07.1]} 16... c5
{[%clk 0:02:36.4]} 17. Be3 {[%clk 0:02:05.4]} 17... Rac8 {[%clk 0:02:36]} 18.
Rac1 {[%clk 0:02:01.5]} 18... cxd4 {[%clk 0:02:31.1]} 19. cxd4 {[%clk
0:02:02.4]} 19... Rc7 {[%clk 0:02:31.5]} 20. c5 {[%clk 0:01:54.6]} 20... Rec8
{[%clk 0:02:24.1]} 21. cxd6 {[%clk 0:01:32.1]} 21... Rxc1 {[%clk 0:02:21.4]} 22.
d7 {[%clk 0:01:32.3]} 22... R1c2 {[%clk 0:02:07.4]} 23. dxc8=Q+ {[%clk
0:01:30.1]} 23... Rxc8 {[%clk 0:02:08.3]} 24. Nb3 {[%clk 0:01:15.5]} 24... Nc4
{[%clk 0:01:56.7]} 25. Rc1 {[%clk 0:01:13.1]} 25... a5 {[%clk 0:01:52.5]} 26.
Kg1 {[%clk 0:01:05.2]} 26... Nd6 {[%clk 0:01:28.4]} 27. Rxc8+ {[%clk 0:01:00.3]}
27... Nxc8 {[%clk 0:01:29.3]} 28. d5 {[%clk 0:01:01]} 28... f5 {[%clk
0:01:20.9]} 29. f3 {[%clk 0:00:45.4]} 29... fxe4 {[%clk 0:01:16.5]} 30. fxe4
{[%clk 0:00:46.3]} 30... a4 {[%clk 0:01:16.1]} 31. Nd4 {[%clk 0:00:39.3]} 31...
Nd6 {[%clk 0:01:13.5]} 32. Nc6 {[%clk 0:00:35]} 32... Nxe4 {[%clk 0:01:09.6]}
33. Bxb6 {[%clk 0:00:30.7]} 33... Kf7 {[%clk 0:01:01.7]} 34. Nd8+ {[%clk
0:00:28.4]} 34... Ke8 {[%clk 0:00:57.6]} 35. Ne6 {[%clk 0:00:25]} 35... Bf6
{[%clk 0:00:57.9]} 36. Ba5 {[%clk 0:00:17.2]} 36... Bc3 {[%clk 0:00:51.4]} 37.
Bb6 {[%clk 0:00:10.8]} 37... Nf6 {[%clk 0:00:41.4]} 38. Nc7+ {[%clk 0:00:07.8]}
38... Kd7 {[%clk 0:00:41.3]} 39. Kg2 {[%clk 0:00:07.4]} 39... Be5 {[%clk
0:00:41.4]} 40. Nb5 {[%clk 0:00:07]} 40... Nxd5 {[%clk 0:00:40.5]} 41. Bf2
{[%clk 0:00:07.6]} 41... Kc6 {[%clk 0:00:36.2]} 42. Na7+ {[%clk 0:00:07.5]}
42... Kb7 {[%clk 0:00:34.4]} 43. Nb5 {[%clk 0:00:08.4]} 43... Ka6 {[%clk
0:00:30.3]} 44. Na3 {[%clk 0:00:08.4]} 44... Nb4 {[%clk 0:00:23.9]} 45. Nc4
{[%clk 0:00:08.9]} 45... Bc7 {[%clk 0:00:24.5]} 46. a3 {[%clk 0:00:09.2]} 46...
Kb5 {[%clk 0:00:22.8]} 47. Ne3 {[%clk 0:00:05.3]} 47... Nd3 {[%clk 0:00:21.2]}
48. Nd5 {[%clk 0:00:05.1]} 48... Bd6 {[%clk 0:00:16.8]} 49. Nc3+ {[%clk
0:00:02.7]} 49... Ka5 {[%clk 0:00:17.1]} 50. Bd4 {[%clk 0:00:02.5]} 50... Bxa3
{[%clk 0:00:14.8]} 51. Kf3 {[%clk 0:00:03.4]} 51... Bc5 {[%clk 0:00:09.8]} 52.
Bh8 {[%clk 0:00:03.5]} 52... Nb4 {[%clk 0:00:06.6]} 53. Ke4 {[%clk 0:00:02.9]}
53... a3 {[%clk 0:00:07]} 54. Ne2 {[%clk 0:00:01.8]} 54... a2 {[%clk 0:00:06]}
55. Nc1 {[%clk 0:00:02.3]} 55... Ka4 {[%clk 0:00:05.8]} 56. Be5 {[%clk
0:00:01.9]} 56... Ka3 {[%clk 0:00:05.8]} 57. Bc3 {[%clk 0:00:01.8]} 57... Nc2
{[%clk 0:00:05.4]} 58. Kd3 {[%clk 0:00:02.1]} 58... a1=Q {[%clk 0:00:05]} 59.
Bxa1 {[%clk 0:00:02.8]} 59... Nxa1 {[%clk 0:00:05.9]} 60. Ne2 {[%clk 0:00:03.5]}
60... Bd6 {[%clk 0:00:06]} 61. Nd4 {[%clk 0:00:03.7]} 61... Nb3 {[%clk
0:00:06.2]} 62. Nf3 {[%clk 0:00:04]} 62... Kb4 {[%clk 0:00:06.1]} 63. Ng5 {[%clk
0:00:03.8]} 63... h5 {[%clk 0:00:06.2]} 64. Ne6 {[%clk 0:00:03.8]} 64... Nc5+
{[%clk 0:00:06.3]} 65. Nxc5 {[%clk 0:00:04.5]} 65... Kxc5 {[%clk 0:00:06.7]} 66.
Ke4 {[%clk 0:00:05.4]} 66... e6 {[%clk 0:00:07.1]} 67. h3 {[%clk 0:00:06.1]}
67... Bxg3 {[%clk 0:00:07.2]} 0-1